Cogmind - Beta 15 @@@ ROGUE MODE // 2025.09.15 @ 19:35:19 Player: Lillith Result: Self-destructed Performance ------------- Evolutions (3) 1500 Regions Visited (7) 1400 Robots Destroyed (32) 160 Value Destroyed (530) 530 Prototype IDs (25) 500 Alien Tech Used (0) 0 Bonus (905) 905 TOTAL SCORE: 4995 Bonus ------- Follower Combat Kills 105 Entered DSFs 500 Aligned with FarCom 300 Cogmind --------- Core Integrity 609/700 Matter 300/300 Energy 100/100 System Corruption 0% Temperature Cool (0) Movement Flying (50) Location -7/DSF Parts ------- > --- POWER (2) -------- (None) > --- PROPULSION (4) --- Flying Fortress v7 > --- UTILITY (5) ------ Large Storage Unit Improved Melee Analysis Suite Improved Light Armor Plating Hacking Suite Hacking Suite > --- WEAPON (2) ------- Blade Saw Chainsword > --- INVENTORY (15) --- Light Nuclear Core Light Angular Momentum Engine Improved Hover Unit Surge Thruster Xenon Bombardment Thruster Advanced Weight Redist. System Energy Filter Advanced ECM Suite Light Armor Plating Light Armor Plating System Shield Arc Projector Faulty Improved Medium Laser Improved Light Cannon Improved Grenade Launcher Peak State ------------ > --- POWER ------------ Improved Ion Engine Light Nuclear Core > --- PROPULSION ------- Flying Fortress v7 > --- UTILITY ---------- Large Storage Unit Improved Melee Analysis Suite Improved Light Armor Plating Hacking Suite Hacking Suite > --- WEAPON ----------- Blade Saw Chainsword > --- INVENTORY -------- Light Nuclear Core Light Angular Momentum Engine Improved Hover Unit Surge Thruster Xenon Bombardment Thruster Advanced Weight Redist. System Energy Filter Advanced ECM Suite Light Armor Plating Light Armor Plating System Shield Arc Projector Improved Medium Laser Improved Light Cannon Improved Grenade Launcher [Rating: 62] Favorites ----------- Power Improved Ion Engine Engine Improved Ion Engine Power Core Light Nuclear Core Propulsion Light Treads Treads Light Treads Wheel Wheel Flight Unit Flying Fortress v7 Utility Large Storage Unit Device Seismic Detector Storage Large Storage Unit Processor Improved Melee Analysis Suite Hackware Hacking Suite Protection Improved Light Armor Plating Weapon Assault Rifle Energy Gun Arc Projector Energy Cannon Heavy Particle Cannon Ballistic Gun Assault Rifle Launcher Grenade Launcher Slashing Weapon Chainsword Build | -11 -10 -10 -10 -9 -8 -7 -7 ------- Run | Yrd Mat Min Exi Min Mat Fac DSF Slots Evolved 6 | . . . . . 4 2 . Power 1 | . . . . . 1 . . Propulsion 2 | . . . . . 2 . . Utility 3 | . . . . . 1 2 . Weapon . | . . . . . . . . Parts Attached 26 | 8 3 1 . 3 6 2 3 Power 4 | 1 . . . 1 1 . 1 Engine 3 | 1 . . . 1 1 . . Core 1 | . . . . . . . 1 Reactor . | . . . . . . . . Propulsion 4 | 3 . . . . 1 . . Treads 1 | 1 . . . . . . . Leg . | . . . . . . . . Wheel 2 | 2 . . . . . . . Hover . | . . . . . . . . Flight 1 | . . . . . 1 . . Utility 8 | 2 1 . . 1 2 2 . Device 1 | 1 . . . . . . . Storage 2 | 1 1 . . . . . . Processor 1 | . . . . . . 1 . Hackware 2 | . . . . . 1 1 . Protection 2 | . . . . 1 1 . . Artifact . | . . . . . . . . Weapon 10 | 2 2 1 . 1 2 . 2 Energy Gun 1 | . . . . . . . 1 Energy Cannon 1 | . . . . . 1 . . Ballistic Gun 5 | 2 1 1 . 1 . . . Ballistic Cannon . | . . . . . . . . Launcher 1 | . 1 . . . . . . Special Weapon . | . . . . . . . . Impact Weapon . | . . . . . . . . Slashing Weapon 2 | . . . . . 1 . 1 Piercing Weapon . | . . . . . . . . Special Melee Weapon . | . . . . . . . . Unidentified Prototypes . | . . . . . . . . Parts Lost 2 | . . . . . . . 2 Power 2 | . . . . . . . 2 Propulsion . | . . . . . . . . Utility . | . . . . . . . . Weapon . | . . . . . . . . Highest Loss Streak 2 | . . . . . . . 2 To Critical Strikes . | . . . . . . . . Average Backups 11 | 6 9 12 11 11 13 13 14 Power 1 | . 1 1 1 1 1 2 2 Propulsion 3 | 3 3 4 3 3 2 2 2 Utility 3 | 1 2 3 3 3 5 5 6 Weapon 3 | . 2 4 4 3 4 4 3 Tool/Special . | . . . . . . . . Unused Backups 31 | . 4 . 1 9 4 . 13 Power 3 | . . . . 1 . . 2 Propulsion 9 | . 2 . 1 3 . . 3 Utility 11 | . 1 . . 3 2 . 5 Weapon 8 | . 1 . . 2 2 . 3 Tool/Special . | . . . . . . . . Average Slot Usage (%) 89 | . 100 100 100 99 71 75 70 Engine 14 | . 14 14 14 13 17 15 8 Treads 8 | . 14 14 14 14 . . . Wheel 8 | . 14 14 14 14 . . . Flight 2 | . . . . . 8 7 7 Device 7 | . 14 14 14 8 . . . Storage 11 | . 14 14 14 14 9 7 7 Processor 1 | . . . . . . 5 7 Hackware 4 | . . . . . 8 15 15 Protection 4 | . . . . 5 9 8 5 Energy Cannon 2 | . . . . . 7 7 1 Ballistic Gun 16 | . 26 23 21 27 2 . . Launcher 2 | . 1 4 6 . . . . Slashing Weapon 3 | . . . . . 8 7 10 Peak Build Rating 62 | 7 8 8 11 15 54 61 62 Average Rating 24 | 5 7 8 9 12 52 59 59 On Entrance 20 | . 7 8 8 11 15 54 61 Naked Turns . | . . . . . . . . Heaviest Build 49 | 14 30 31 31 35 46 49 46 Greatest Support 50 | 20 10 10 10 10 50 50 50 Greatest Overweight (x) 3 | 1 2 3 3 3 . . . Average Overweight (x) 1 | . 1 2 2 2 . . . Largest Inventory Capacity 15 | 8 15 15 15 15 15 15 15 Average Capacity 13 | 7 11 15 15 15 15 15 15 Most Carried 15 | 8 12 12 15 15 15 14 15 Average Carried 12 | 6 9 12 13 14 13 12 14 Final Capacity 15 | 8 15 15 15 15 15 15 15 Final Carried 15 | 8 12 12 15 15 14 14 15 Class Distribution -------------------- 84% | Mutant 12% | Hacker-Mutant 3% | Hacker-Gladiator Dominant Class ---------------- Mutant | -10/Materials Mutant | -10/Mines Mutant | -10/Exiles Mutant | -9/Mines Mutant | -8/Materials Hacker-Mutant | -7/Factory Hacker-Gladiator | -7/DSF Resources | -11 -10 -10 -10 -9 -8 -7 -7 ----------- Run | Yrd Mat Min Exi Min Mat Fac DSF Matter Collected 856 | 392 12 40 100 182 60 . 70 Remotely . | . . . . . . . . Salvage Created 791 | 232 86 12 . 129 194 . 138 Parts 73 | 23 6 2 . 13 10 . 19 Haulers Intercepted 2 | . . . . . 2 . . Recyclers Shooed 1 | 1 . . . . . . . Parts Field Recycled . | . . . . . . . . Retrieved Matter . | . . . . . . . . Parts Self-Destructed . | . . . . . . . . Prevented . | . . . . . . . . Kills | -11 -10 -10 -10 -9 -8 -7 -7 ------- Run | Yrd Mat Min Exi Min Mat Fac DSF Combat Hostiles Destroyed 16 | . 2 1 . 8 1 . 4 Melee 4 | . . . . . . . 4 Guns 2 | . . 1 . 1 . . . Cannons 1 | . . . . . 1 . . AOE 9 | . 2 . . 7 . . . Classes Destroyed 10 | 2 2 1 . 1 2 . 2 Worker 3 | . . . . 3 . . . Tunneler 8 | 8 . . . . . . . Hauler 2 | . . . . . 2 . . Recycler 2 | 1 . . . . 1 . . Operator 1 | . 1 . . . . . . Swarmer 6 | . . 1 . 5 . . . Cutter 3 | . . . . . . . 3 Grunt 5 | . 2 . . 3 . . . Sentry 1 | . . . . . 1 . . Specialist 1 | . . . . . . . 1 Best Kill Streak 7 | 4 2 1 . 7 2 . 2 Combat Bots Only 5 | . 2 1 . 5 1 . 2 Max Kills in Single Turn 3 | 1 1 1 . 3 1 . 1 Gunslinging . | . . . . . . . . Exploded 2 | . 1 . . 2 . . . Melee 1 | . . . . . . . 1 Uniques/NPCs Destroyed . | . . . . . . . . Combat | -11 -10 -10 -10 -9 -8 -7 -7 -------- Run | Yrd Mat Min Exi Min Mat Fac DSF Hostile Shots Fired 94 | . 7 2 . 13 18 . 54 Missed 29 | . 2 1 . 4 9 . 13 Hits 65 | . 5 1 . 9 9 . 41 Melee 29 | . . . . . . . 29 Projectile 36 | . 5 1 . 9 9 . 12 AOE 2 | . . . . . . . 2 Critical Strikes 16 | . . . . 1 . . 15 Damage Taken 1335 | . 75 7 . 106 149 . 998 Core 125 | . 28 . . 6 . . 91 Absorbed by Shields . | . . . . . . . . Core Remaining (%) 95 | 100 . . . 86 100 . . Volleys Fired 62 | 34 7 2 . 10 3 . 6 Largest 2 | 2 2 2 . 2 1 . 1 Hottest 75 | 40 40 40 . 50 75 . 55 Shots Fired 106 | 68 11 4 . 14 3 . 6 Gun 90 | 68 8 4 . 4 . . 6 Cannon 3 | . . . . . 3 . . Launcher 13 | . 3 . . 10 . . . Special . | . . . . . . . . Kinetic 84 | 68 8 4 . 4 . . . Thermal 3 | . . . . . 3 . . Explosive 13 | . 3 . . 10 . . . Electromagnetic 6 | . . . . . . . 6 Robot Hit Streak 6 | 6 2 1 . 4 2 . 2 Robot Miss Streak 4 | 4 1 2 . 3 1 . 1 Penetration Max . | . . . . . . . . Secondary Targets . | . . . . . . . . Shots Hit Robots 74 | 39 4 2 . 6 7 . 16 Core Hits 43 | 14 6 1 . 14 2 . 6 Critical Kills . | . . . . . . . . Critical Parts Destroyed . | . . . . . . . . Critical Strikes 1 | . . . . . . . 1 Sever 1 | . . . . . . . 1 Melee Attacks 37 | . . . . . 12 . 25 Impact . | . . . . . . . . Slashing 37 | . . . . . 12 . 25 Piercing . | . . . . . . . . Sneak Attacks 3 | . . . . . 3 . . Combat Hostiles . | . . . . . . . . Follow-up Attacks . | . . . . . . . . Damage Inflicted 2036 | 416 194 26 . 522 375 . 503 Guns 526 | 416 44 26 . 11 . . 29 Cannons 50 | . . . . . 50 . . Explosions 661 | . 150 . . 511 . . . Melee 799 | . . . . . 325 . 474 Ramming . | . . . . . . . . Kinetic 497 | 416 44 26 . 11 . . . Thermal 50 | . . . . . 50 . . Explosive 661 | . 150 . . 511 . . . Electromagnetic 29 | . . . . . . . 29 Impact . | . . . . . . . . Slashing 799 | . . . . . 325 . 474 Piercing . | . . . . . . . . Highest Corruption . | . . . . . . . . Average Corruption . | . . . . . . . . Corruption Purged . | . . . . . . . . Corruption Blocked . | . . . . . . . . Overload Shots . | . . . . . . . . Overflow Damage 176 | . . . . 32 142 . 2 Projectiles . | . . . . . . . . Explosions 32 | . . . . 32 . . . Melee 144 | . . . . . 142 . 2 Knockbacks . | . . . . . . . . Impact . | . . . . . . . . Kinetic . | . . . . . . . . Secondary . | . . . . . . . . Self-Inflicted Damage 12 | . . . . 12 . . . Shots 3 | . . . . 3 . . . Rammed . | . . . . . . . . Targets Rammed . | . . . . . . . . Kicked . | . . . . . . . . Crushed . | . . . . . . . . Highest Temperature 65 | . 9 . . 22 65 . . Average Temperature 24 | . 7 . . 14 28 . . Received Heat Transfer 168 | . 45 . . 42 81 . . Siege Activations . | . . . . . . . . Martial Activations . | . . . . . . . . Shielding Activations . | . . . . . . . . Robots Disrupted . | . . . . . . . . Combat Hostiles . | . . . . . . . . Robots Corrupted . | . . . . . . . . Combat Hostiles . | . . . . . . . . Parts Fried . | . . . . . . . . Impact Corruptions . | . . . . . . . . Robots Melted . | . . . . . . . . Combat Hostiles . | . . . . . . . . Parts Melted . | . . . . . . . . Heat Transferred 74 | . . . . . 74 . . Parts Sabotaged . | . . . . . . . . Parts Stolen . | . . . . . . . . Parts Stripped . | . . . . . . . . Power Chain Reactions . | . . . . . . . . Alert | -11 -10 -10 -10 -9 -8 -7 -7 ------- Run | Yrd Mat Min Exi Min Mat Fac DSF Maximum Alert Level . | . . . . . . . . Low Security (%) 100 | 100 100 100 . 100 100 100 100 Level 1 . | . . . . . . . . Level 2 . | . . . . . . . . Level 3 . | . . . . . . . . Level 4 . | . . . . . . . . Level 5 . | . . . . . . . . High Security . | . . . . . . . . Max Security . | . . . . . . . . Peak Influence 198 | 15 55 20 . 198 66 7 120 Initial 13 | . 3 . . . 13 7 . Average 39 | 2 17 3 . 99 29 . 73 Influence Increases 709 | 45 86 20 . 238 190 10 120 Destroy 0b10 Robot/C 380 | . 40 20 . 160 80 . 80 Destroy 0b10 Robot/NC 80 | 45 5 . . 15 15 . . Destroy Leader 64 | . 10 . . 20 24 . 10 Allied During Kill 4 | . . . . . 4 . . Successful Hack 50 | . 25 . . . 15 10 . Disable Machine 30 | . . . . . 30 . . Destroy Structure 56 | . 6 . . 43 7 . . Lose Combat Pursuer 45 | . . . . . 15 . 30 Influence Decreases 609 | 40 91 20 . 204 207 27 20 Entered New Map 33 | . 2 . . . 21 10 . Time Decay 536 | 40 89 20 . 204 166 17 . Lost Part 20 | . . . . . . . 20 Lost Ally 20 | . . . . . 20 . . Squads Dispatched 8 | . 1 . . 1 3 . 3 Investigation 3 | . . . . 1 2 . . Extermination . | . . . . . . . . Reinforcement 5 | . 1 . . . 1 . 3 Assault . | . . . . . . . . Garrison . | . . . . . . . . Intercept . | . . . . . . . . Searches Triggered . | . . . . . . . . Construction Impeded . | . . . . . . . . Haulers Reinforced . | . . . . . . . . Active Scanning Responses . | . . . . . . . . Cargo Convoy Interrupts . | . . . . . . . . Stealth | -11 -10 -10 -10 -9 -8 -7 -7 --------- Run | Yrd Mat Min Exi Min Mat Fac DSF Distress Signals 5 | . . . . . 5 . . Communications Jammed . | . . . . . . . . Distress Signals . | . . . . . . . . Times Spotted 44 | . 3 3 . 8 21 . 9 Peak Tracking Total 11 | . 2 3 . 5 11 . 4 Tactical Retreats 3 | . . . . . 1 . 2 Traps | -11 -10 -10 -10 -9 -8 -7 -7 ------- Run | Yrd Mat Min Exi Min Mat Fac DSF Traps Triggered . | . . . . . . . . Indirectly . | . . . . . . . . Trap Hack Attempts . | . . . . . . . . Triggered . | . . . . . . . . Disarmed . | . . . . . . . . Reprogrammed . | . . . . . . . . Reused . | . . . . . . . . Traps Extracted . | . . . . . . . . Installed . | . . . . . . . . Triggered . | . . . . . . . . Machines | -11 -10 -10 -10 -9 -8 -7 -7 ---------- Run | Yrd Mat Min Exi Min Mat Fac DSF Machines Disabled 2 | . . . . . 2 . . Max in Single Turn . | . . . . . . . . Machines Repaired . | . . . . . . . . Machines Dismantled . | . . . . . . . . Machines Sabotaged . | . . . . . . . . Overloaded Fab Kills . | . . . . . . . . Hacking | -11 -10 -10 -10 -9 -8 -7 -7 --------- Run | Yrd Mat Min Exi Min Mat Fac DSF Machines Accessed 15 | . 4 . 2 2 5 2 . Terminals 10 | . 4 . . . 4 2 . Fabricators . | . . . . . . . . Repair Stations 1 | . . . . . 1 . . Recycling Units . | . . . . . . . . Scanalyzers . | . . . . . . . . Garrison Access . | . . . . . . . . Total Hacks 42 | . 14 . 5 2 17 4 . Successful 30 | . 8 . 5 2 13 2 . Failed 12 | . 6 . . . 4 2 . Catastrophic 2 | . 1 . . . . 1 . Database Lockouts . | . . . . . . . . Manual 20 | . 11 . 2 . 7 . . Terminals 32 | . 14 . . . 14 4 . Fabricators . | . . . . . . . . Repair Stations 3 | . . . . . 3 . . Recycling Units . | . . . . . . . . Scanalyzers . | . . . . . . . . Garrison Access . | . . . . . . . . Terminal Hacks 17 | . 1 . 5 2 7 2 . Record 4 | . . . 4 . . . . Robot Analysis 1 | . . . . . . 1 . Prototype ID Bank 1 | . . . . . 1 . . Open Door 2 | . . . . 2 . . . Open DSF 1 | . . . . . . 1 . Level Access Points 1 | . . . . . 1 . . Reinforcement Status 1 | . . . . . 1 . . Assault Status 1 | . . . . . 1 . . Recall Reinforcements 1 | . . . . . 1 . . Hauler Manifests 1 | . 1 . . . . . . Registered Prototypes 1 | . . . . . 1 . . Zone Layout 1 | . . . . . 1 . . Proto ID Catalog 1 | . . . 1 . . . . Fabricator Hacks . | . . . . . . . . Repair Station Hacks 1 | . . . . . 1 . . Scan Component 1 | . . . . . 1 . . Recycling Unit Hacks . | . . . . . . . . Scanalyzer . | . . . . . . . . Garrison Access Hacks . | . . . . . . . . Unauthorized Hacks 12 | . 7 . . . 5 . . Terminals 12 | . 7 . . . 5 . . Botnet 6 | . 4 . . . 2 . . Skim 6 | . 3 . . . 3 . . Fabricators . | . . . . . . . . Repair Stations . | . . . . . . . . Recycling Units . | . . . . . . . . Scanalyzers . | . . . . . . . . Garrison Access . | . . . . . . . . Data Cores Recovered . | . . . . . . . . Used . | . . . . . . . . Hacking Detections 10 | . 4 . . . 4 2 . Full Trace Events 1 | . . . . . 1 . . Feedback Events . | . . . . . . . . Feedback Blocked . | . . . . . . . . Robot Schematics Acquired . | . . . . . . . . Robots Built . | . . . . . . . . Authchips . | . . . . . . . . Time . | . . . . . . . . Total Robot Build Rating . | . . . . . . . . Part Schematics Acquired . | . . . . . . . . Parts Built . | . . . . . . . . Authchips . | . . . . . . . . Time . | . . . . . . . . Total Part Build Rating . | . . . . . . . . Parts Repaired . | . . . . . . . . Time . | . . . . . . . . Parts Recycled . | . . . . . . . . Recycled Matter . | . . . . . . . . Retrieved Matter . | . . . . . . . . Retrieved Components . | . . . . . . . . Parts Scanalyzed . | . . . . . . . . Part Schematics Acquired . | . . . . . . . . Parts Damaged . | . . . . . . . . Bothacking | -11 -10 -10 -10 -9 -8 -7 -7 ------------ Run | Yrd Mat Min Exi Min Mat Fac DSF Used RIF Installer . | . . . . . . . . Robots Hacked . | . . . . . . . . Non-combat . | . . . . . . . . Combat . | . . . . . . . . Robot Hacks Applied . | . . . . . . . . Relay Couplers Released . | . . . . . . . . Fabnet Peak Effective % . | . . . . . . . . Robots Rewired . | . . . . . . . . Allies Hacked . | . . . . . . . . Hacks Repelled . | . . . . . . . . Allies | -11 -10 -10 -10 -9 -8 -7 -7 -------- Run | Yrd Mat Min Exi Min Mat Fac DSF Total Allies 3 | . . 2 . 1 . . . Largest Group 2 | . . 2 2 1 1 . . Highest-Rated Group 42 | . . 42 42 31 31 . . Highest-Rated Ally 31 | . . 31 31 31 31 . . Total Orders . | . . . . . . . . Ally Attacks 22 | . . . . . 22 . . Total Damage 341 | . . . . . 341 . . Kills 3 | . . . . . 3 . . Allies Corrupted . | . . . . . . . . Allies Melted . | . . . . . . . . Intel | -11 -10 -10 -10 -9 -8 -7 -7 ------- Run | Yrd Mat Min Exi Min Mat Fac DSF Active Infowar (turns) 1147 | 4 230 157 489 267 . . . Seismic 1147 | 4 230 157 489 267 . . . Robot Analysis Total 1 | . . . . . . 1 . Derelict Logs Recovered 2 | . . 1 . 1 . . . Drone Launches . | . . . . . . . . Drone Recoveries . | . . . . . . . . Exploration | -11 -10 -10 -10 -9 -8 -7 -7 ------------- Run | Yrd Mat Min Exi Min Mat Fac DSF Turns Passed 2285 | 224 230 157 489 445 381 210 149 Spaces Moved 2052 | 111 190 125 417 336 577 171 125 Core 4 | 4 . . . . . . . Treads 5 | 5 . . . . . . . Legs . | . . . . . . . . Wheels 1170 | 102 190 125 417 336 . . . Hover . | . . . . . . . . Flight 873 | . . . . . 577 171 125 Fastest Speed 50 | 50 95 110 110 110 50 50 50 Average Speed 85 | 98 102 113 116 116 50 50 50 Slowest Speed 160 | 160 110 125 125 125 50 50 50 Overloaded Moves . | . . . . . . . . Propulsion Burnouts . | . . . . . . . . Robots Hopped . | . . . . . . . . Potential Cave-ins . | . . . . . . . . Cave-ins Triggered . | . . . . . . . . Exploration Rate (%) 39 | 5 33 38 76 58 44 5 54 Regions Visited 7 Branch Regions 3 Pre-discovered Areas 2 | . . . 1 1 . . . Known Exits Taken 2 | . . . . . 1 1 . Unknown Exits Taken 5 | 1 1 1 1 1 . . . Scrap Searched 2 | . . . . 2 . . . Spaces Dug 6 | . . . . . 6 . . Terrain Destroyed 82 | . 5 . . 70 7 . . Melee 6 | . . . . . 6 . . Projectile 1 | . . . . . 1 . . AOE 75 | . 5 . . 70 . . . Terrain Rammed . | . . . . . . . . Walls Destroyed . | . . . . . . . . Machines Disabled . | . . . . . . . . Actions | -11 -10 -10 -10 -9 -8 -7 -7 --------- Run | Yrd Mat Min Exi Min Mat Fac DSF Total 2422 | 161 216 135 421 378 651 294 166 Wait 165 | . . 7 . 1 34 119 4 Move 2045 | 110 189 124 416 335 576 170 125 Hop . | . . . . . . . . Pick Up 44 | 8 9 . 2 11 10 2 2 Fast Attach 13 | 7 . . . 2 1 . 3 Attach 6 | . . . . . 3 2 1 Detach 1 | . . . . . 1 . . Swap 16 | 1 4 2 1 5 2 1 . Drop 33 | 1 7 . 2 14 9 . . Fire 62 | 34 7 2 . 10 3 . 6 Melee 37 | . . . . . 12 . 25 Ram . | . . . . . . . . Kick . | . . . . . . . . Crush . | . . . . . . . . Escape Stasis . | . . . . . . . . Rewire . | . . . . . . . . Trap . | . . . . . . . . Miscellaneous . | . . . . . . . . Route ------- -11/Scrapyard -10/Materials -10/Mines -10/Exiles -9/Mines (discovered 2 exits: *Mat x2) -8/Materials (discovered 3 exits: *Fac x3) -7/Factory -7/DSF History --------- Turn | Location | Event 10 | -11/Scrapyard | Discovered new exit (range 16) 225 | -11/Scrapyard | Entered Materials 303 | -10/Materials | Build established: Mutant 386 | -10/Materials | Met 8R-AWN 399 | -10/Materials | Discovered new exit (range 9) 455 | -10/Materials | Entered Mines 458 | -10/Mines | Followed 8R-AWN into the Mines 544 | -10/Mines | Learned location of 1 exit from Materials 563 | -10/Mines | Assembled infested the area 598 | -10/Mines | Discovered new exit (range 5) 612 | -10/Mines | Entered Exiles 612 | -10/Exiles | Accompanied by 2 allies 642 | -10/Exiles | Led the pair of lost Derelicts to a safe place 656 | -10/Exiles | Welcomed by 8R-AWN 677 | -10/Exiles | Met EX-HEX 730 | -10/Exiles | Met EX-DEC 744 | -10/Exiles | Learned location of Zion (-7) 766 | -10/Exiles | Met EX-BIN 789 | -10/Exiles | Aligned with FarCom system 790 | -10/Exiles | Given EX-Vault access code 822 | -10/Exiles | Opened EX-Vault 835 | -10/Exiles | Found Flying Fortress v7 867 | -10/Exiles | Warned to stay clear of 0b10 Research branches 959 | -10/Exiles | Visited The Gauntlet 1092 | -10/Exiles | Discovered new exit (range 10) 1101 | -10/Exiles | Left Exiles lab with Flying Fortress v7 1101 | -10/Exiles | Entered Mines 1152 | -9/Mines | Met a Derelict bent on vengeance 1317 | -9/Mines | Joined a pair of Derelicts in attacking an 0b10 outpost 1357 | -9/Mines | Found DCF Scrap (13 items) 1396 | -9/Mines | Met a Derelict shopkeep closing up shop 1458 | -9/Mines | Discovered new exit (range 6) 1485 | -9/Mines | Met a Derelict who couldn't figure out how to use a Trap Extractor 1535 | -9/Mines | Discovered new exit (range 5) 1538 | -9/Mines | Received a Mining Laser from a helpful Derelict 1546 | -9/Mines | Entered Materials 1546 | -8/Materials | Accompanied by 1 ally 1546 | -8/Materials | Evolved 4 slots: Power x1, Propulsion x2, Utility x1 1547 | -8/Materials | Identified exit to Factory 1789 | -8/Materials | Discovered exit to Factory (range 17) 1927 | -8/Materials | Entered Factory 1927 | -7/Factory | Evolved 2 slots: Utility x2 2137 | -7/Factory | Identified exit to DSF 2137 | -7/Factory | Entered DSF 2154 | -7/DSF | Additional patrols routed to DSF 2286 | -7/DSF | Self-destructed Last Messages --------------- 02202_ Acquired Surge Thruster. 02204_ Acquired Arc Projector. 02205_ ALERT: Suspicious intruders detected, dispatching Cutter reinforcements to area. 02205_ Acquired 38 matter. 02206_ Acquired Lgt. Nuclear Core. 02209_ Acquired Imp. Light Armor Plating. 02213_ Acquired 7 matter. 02215_ Acquired Blade Saw. 02226_ X-67 Chaingunner springs to life. 02231_ X-67 Chaingunner Minigun severed. 02249_ X-67 Chaingunner destroyed. 02251_ Acquired 23 matter. 02256_ ALERT: Suspicious intruders detected, dispatching Cutter reinforcements to area. 02258_ Imp. Ion Engine destroyed. 02275_ A-02 Transporter knocked back. 02275_ Knocked back. 02284_ Lgt. Nuclear Core destroyed. 02286_ Slug penetrates Wall. Map ----- +----------------------------------------------------+ | ?????????????????????????????????????????????? | | ?????????????????????????????????????????????? | | ?????????????????????????????????????????????? | | ?????????????????????????????????????????????? | | ?????????????????????????????????????????????? | | ?????????????????????????????????????????????? | | ?????????????????????????????????????????????? | | ??????????????????? ???????????????????????? | | ??????????????????] ???????????????????????? | | ??######??###???#?# ???????????????????????? | | ??#!! #?!!!#?!!### ##?????????????????????? | | ??#!! ##!!!#!!!## #?????????????????????? | | ??# ??????c?c????????????? | | ??# ?????????c? ????????? | | ??# ??????????? ????????? | | ??#!! ##!!!#!!!#? ??????????? ????????? | | ??#!! #???!#?????#! !#??????????# ????????? | | ??### ###??????### ###????????# ##???????? | | ???# !!#??????#! !#???????? ????????? | | ???# !!#??????#!!! !????????? ????????? | | ???# !!#???????! H ?????????? ????????? | | ???##[ ###??????### ###???????## ##???????? | | ???#! !!!#??????# #????????= =#???????? | | ???#!!%!!#??????# #????????= =#???????? | | ???## *########## ;#######?# #????????? | | ??### ### #!!!### ###@c=# ### ###??????? | | ?##"" ## #!!!###! ###cc=# ## ""###????? | | """"" /= ] = % """""????? | | "##"" *%* = ] ""#??????? | | ??#"""""##!!#!!!#= =/ #===#==##"""""#??????? | | ??#"""""#########*!= #########"""""#??????? | | ??####"##???????#####"###???????##"####??????? | | ?????#"#????????????###??????????#"#?????????? | | ?????""#?????????????????????????#""?????????? | | ??????????????????????????????????##?????????? | | ?????????????????????????????????????????????? | | ?????????????????????????????????????????????? | | ?????????????????????????????????????????????? | | ?????????????????????????????????????????????? | | | | | | | | | | | | | | | | | | | | | | | +----------------------------------------------------+ Best States ------------- Heat Dissipation 34 Energy Generation 21 Energy Capacity 430 Matter Stores 300 Matter Capacity 300 Sight Range 16 Terrain Scan Density 10 Armor Coverage 300 Evasion (%) 60 Melee Accuracy 6 Recoil Reduction 1 Offensive Hacking 20 Item Schematics ----------------- None Robot Schematics ------------------ None Fabricated ------------ Nothing Repaired ---------- Nothing Alien Tech Used ----------------- None Achievements -------------- None Challenges ------------ None Game ------ Seed DamperBurstBattery Manual? 0 Play Time 00:36:50 Cumulative 54.6 hours Start 2025.09.15 @ 19:01:02 End 2025.09.15 @ 19:35:19 Sessions 1 Manual Loads 0 Difficulty Rogue Special Mode None Game No. 99 Rogue 99 Adventurer 0 Explorer 0 Win Type - Total 0 Types 0/0/0/0/0/0/0/0/0/0 Lore% 45 Gallery% 33 Achievement% 30 Wizard Run 0 Options --------- Layout 2 ASCII 0 Keyboard 1 Movement Arrows Keybinds 0 Fullscreen 2 Font 32/SmallcapsGlow Map View 50x44 Zoom Use 0% Tactical HUD 1 Map Filters NONE Filters NONE Steam 1 RUN: 1642e4cd-ca5b-4ca3-bf6b-4a1c9ce9abc3